[Event "22nd Hogeschool Zeeland 2018"]
[Site "Vlissingen"]
[Date "2018.08.08"]
[Round "6"]
[White "Rajesh, VAV"]
[Black "Vrolijk, Liam"]
[Result "1/2-1/2"]
[ECO "E43"]
[WhiteElo "2325"]
[BlackElo "2430"]
[Annotator "NA"]
[PlyCount "41"]
[EventDate "2018.08.04"]
[EventType "swiss"]
[EventCountry "NED"]
[SourceTitle "playchess.com"]
[Source "ChessBase"]
[SourceQuality "1"]
[TimeControl "40/5400+30:1800+30"]

1. d4 {[%emt 0:00:00]} Nf6 {[%emt 0:00:00]} 2. c4 {[%emt 0:00:00]} e6 {[%emt 0:00:00]} 3. Nc3 {[%emt 0:00:00]} Bb4 {[%emt 0:00:00]} 4. e3 {[%emt 0:00:01]} b6 {[%emt 0:00:09]} 5. Bd3 {[%emt 0:00:07]} Bb7 {[%emt 0:00:06]} 6. Nf3 {[%emt 0:00:04]} O-O {[%emt 0:00:08]} 7. O-O {[%emt 0:00:19]} c5 {[%emt 0:00:06]} 8. Bd2 {[%emt 0:02:17]} cxd4 {[%emt 0:00:15]} 9. exd4 {[%emt 0:00:34]} d5 {[%emt 0:00:10]} 10. cxd5 {[%emt 0:02:02]} Nxd5 {[%emt 0:00:13]} 11. Qe2 {[%emt 0:01:31]} Nd7 {[%emt 0:02:28]} 12. Rac1 {[%emt 0:00:40]} Nxc3 {[%emt 0:01:37]} 13. bxc3 {[%emt 0:01:09]} Bd6 {[%emt 0:00:20]} 14. Rfd1 {[%emt 0:01:20]} Qc7 {[%emt 0:05:15]} 15. h3 {[%emt 0:00:27]} h6 {[%emt 0:05:47]} 16. c4 {[%emt 0:01:38]} Rac8 {[%emt 0:11:13]} 17. Bc3 {[%emt 0:08:44]} Rfe8 {[%emt 0:04:03]} 18. Re1 {[%emt 0:01:51]} Ba6 {[%emt 0:07:50]} 19. Bb2 {[%emt 0:01:59]} Bb4 {[%emt 0:01:42]} 20. Red1 {[%emt 0:00:16]} Bb7 {[%emt 0:02:22]} 21. Be4 {[%emt 0:19:52]} 1/2-1/2

[Event "22nd Hogeschool Zeeland 2018"]
[Site "Vlissingen"]
[Date "2018.08.08"]
[Round "6"]
[White "Lammens, Tim"]
[Black "Rosmuller, Anton J"]
[Result "1-0"]
[ECO "B06"]
[WhiteElo "2293"]
[BlackElo "2069"]
[Annotator "NA"]
[PlyCount "57"]
[EventDate "2018.08.04"]
[EventType "swiss"]
[EventCountry "NED"]
[SourceTitle "playchess.com"]
[Source "ChessBase"]
[SourceQuality "1"]
[TimeControl "40/5400+30:1800+30"]

1. Nf3 {[%emt 0:00:00]} g6 {[%emt 0:00:08]} 2. e4 {[%emt 0:00:00]} Bg7 {[%emt 0:00:05]} 3. d4 {[%emt 0:00:00]} d6 {[%emt 0:00:06]} 4. Bc4 {[%emt 0:00:10]} Nf6 {[%emt 0:00:08]} 5. Qe2 {[%emt 0:00:07]} O-O {[%emt 0:00:06]} 6. h3 {[%emt 0:00:19]} c6 {[%emt 0:00:23]} 7. Bb3 {[%emt 0:00:19]} Qc7 {[%emt 0:01:38]} 8. e5 {[%emt 0:02:47]} dxe5 {[%emt 0:00:04]} 9. Nxe5 {[%emt 0:04:33]} Nbd7 {[%emt 0:01:54]} 10. Nc3 {[%emt 0:01:01]} Nxe5 {[%emt 0:22:02]} 11. dxe5 {[%emt 0:00:02]} Ne8 {[%emt 0:00:22]} 12. Bf4 {[%emt 0:01:22]} h6 {[%emt 0:05:24]} 13. Qe3 {[%emt 0:04:44]} Qb6 {[%emt 0:03:08]} 14. Qd2 {[%emt 0:00:52]} g5 {[%emt 0:03:28]} 15. Be3 {[%emt 0:00:43]} Qa5 {[%emt 0:01:42]} 16. O-O-O {[%emt 0:04:10]} Bxe5 {[%emt 0:07:55]} 17. h4 {[%emt 0:01:05]} Bf5 {[%emt 0:15:30]} 18. hxg5 {[%emt 0:02:26]} hxg5 {[%emt 0:01:18]} 19. Bxg5 {[%emt 0:00:44]} Ng7 {[%emt 0:05:52]} 20. Bxe7 {[%emt 0:08:13]} Qc7 {[%emt 0:03:29]} 21. Bg5 {[%emt 0:03:41]} Ne6 {[%emt 0:01:28]} 22. Be3 {[%emt 0:00:57]} Rfd8 {[%emt 0:00:43]} 23. Qe2 {[%emt 0:02:42]} Rxd1+ {[%emt 0:00:10]} 24. Qxd1 {[%emt 0:01:14]} Rd8 {[%emt 0:02:00]} 25. Qf3 {[%emt 0:01:30]} Bf4 {[%emt 0:06:52]} 26. Bxe6 {[%emt 0:04:33]} Bxe3+ {[%emt 0:00:04]} 27. Qxe3 {[%emt 0:00:04]} fxe6 {[%emt 0:00:19]} 28. Qg5+ {[%emt 0:00:50]} Kf7 {[%emt 0:00:11]} 29. Qxf5+ {[%emt 0:00:51]} 1-0

[Event "22nd Hogeschool Zeeland 2018"]
[Site "Vlissingen"]
[Date "2018.08.08"]
[Round "6"]
[White "Bluhm, Sonja Maria"]
[Black "Gonzales, Jayson"]
[Result "0-1"]
[ECO "B12"]
[WhiteElo "2279"]
[BlackElo "2383"]
[Annotator "NA"]
[PlyCount "62"]
[EventDate "2018.08.04"]
[EventType "swiss"]
[EventCountry "NED"]
[SourceTitle "playchess.com"]
[Source "ChessBase"]
[SourceQuality "1"]
[TimeControl "40/5400+30:1800+30"]

1. e4 {[%emt 0:00:00]} c6 {[%emt 0:00:00]} 2. d4 {[%emt 0:00:00]} d5 {[%emt 0:00:00]} 3. e5 {[%emt 0:00:25]} Bf5 {[%emt 0:00:22]} 4. Nd2 {[%emt 0:01:02]} e6 {[%emt 0:00:50]} 5. Nb3 {[%emt 0:00:37]} Nd7 {[%emt 0:01:50]} 6. Nf3 {[%emt 0:00:39]} h6 {[%emt 0:01:08]} 7. Be2 {[%emt 0:00:22]} Ne7 {[%emt 0:00:28]} 8. O-O {[%emt 0:00:34]} Qc7 {[%emt 0:05:21]} 9. Be3 {[%emt 0:03:04]} Bh7 {[%emt 0:02:53]} 10. c4 {[%emt 0:02:05]} dxc4 {[%emt 0:01:01]} 11. Bxc4 {[%emt 0:00:06]} Nd5 {[%emt 0:00:03]} 12. Rc1 {[%emt 0:01:53]} Qb6 {[%emt 0:01:28]} 13. Bd3 {[%emt 0:02:52]} Bxd3 {[%emt 0:03:26]} 14. Qxd3 {[%emt 0:00:01]} Be7 {[%emt 0:00:27]} 15. Nfd2 {[%emt 0:00:52]} a5 {[%emt 0:04:27]} 16. a4 {[%emt 0:09:51]} O-O {[%emt 0:02:12]} 17. f4 {[%emt 0:01:18]} Bb4 {[%emt 0:14:44]} 18. Ne4 {[%emt 0:14:39]} Qa6 {[%emt 0:01:02]} 19. Qxa6 {[%emt 0:01:43]} Rxa6 {[%emt 0:00:02]} 20. Bd2 {[%emt 0:00:16]} Rb6 {[%emt 0:05:09]} 21. Bxb4 {[%emt 0:07:31]} Rxb4 {[%emt 0:00:50]} 22. Nxa5 {[%emt 0:00:55]} Ra8 {[%emt 0:15:23]} 23. Nc4 {[%emt 0:03:23]} Raxa4 {[%emt 0:00:21]} 24. Ncd6 {[%emt 0:14:04]} Rxb2 {[%emt 0:02:56]} 25. Rb1 {[%emt 0:02:18]} Rxb1 {[%emt 0:04:20]} 26. Rxb1 {[%emt 0:00:01]} b6 {[%emt 0:00:16]} 27. Rc1 {[%emt 0:02:39]} Nxf4 {[%emt 0:04:24]} 28. Rxc6 {[%emt 0:01:06]} Rxd4 {[%emt 0:00:50]} 29. Rc8+ {[%emt 0:01:26]} Kh7 {[%emt 0:00:11]} 30. g3 {[%emt 0:00:37]} Ng6 {[%emt 0:02:38]} 31. Rc7 {[%emt 0:00:43]} Ngxe5 {[%emt 0:00:20]} 0-1

[Event "22nd Hogeschool Zeeland 2018"]
[Site "Vlissingen"]
[Date "2018.08.09"]
[Round "7"]
[White "Beerdsen, Thomas"]
[Black "Grochal, Joey"]
[Result "1/2-1/2"]
[ECO "B44"]
[WhiteElo "2469"]
[BlackElo "2300"]
[Annotator "ChessBase"]
[PlyCount "44"]
[EventDate "2018.08.04"]
[EventType "swiss"]
[EventCountry "NED"]
[SourceTitle "playchess.com"]
[Source "ChessBase"]
[SourceQuality "1"]
[TimeControl "40/5400+30:1800+30"]

1. e4 {[%emt 0:00:06]} c5 {[%emt 0:00:00]} 2. Nf3 {[%emt 0:00:06]} Nc6 {[%emt 0:00:00]} 3. d4 {[%emt 0:00:05]} cxd4 {[%emt 0:00:00]} 4. Nxd4 {[%emt 0:00:04]} e6 {[%emt 0:00:00]} 5. Nb5 {[%emt 0:00:04]} d6 {[%emt 0:00:02]} 6. Bf4 {[%emt 0:00:04]} e5 {[%emt 0:00:12]} 7. Be3 {[%emt 0:00:05]} Be6 {[%emt 0:08:35]} 8. Nd2 {[%emt 0:05:24]} Nf6 {[%emt 0:11:50]} 9. Bg5 {[%emt 0:02:26]} a6 {[%emt 0:02:50]} 10. Bxf6 {[%emt 0:01:42]} gxf6 {[%emt 0:00:02]} 11. Nc3 {[%emt 0:00:07]} d5 {[%emt 0:00:34]} 12. exd5 {[%emt 0:01:44]} Bxd5 {[%emt 0:00:09]} 13. Nde4 {[%emt 0:03:44]} Bxe4 {[%emt 0:00:55]} 14. Nxe4 {[%emt 0:00:53]} f5 {[%emt 0:01:36]} 15. Ng3 {[%emt 0:03:15]} Qb6 {[%emt 0:10:07]} 16. Be2 {[%emt 0:09:40]} Qxb2 {[%emt 0:08:18]} 17. O-O {[%emt 0:01:32]} Rd8 {[%emt 0:02:38]} 18. Qb1 {[%emt 0:07:42]} Qxb1 {[%emt 0:03:49]} 19. Raxb1 {[%emt 0:00:07]} f4 {[%emt 0:05:10]} 20. Ne4 {[%emt 0:00:37]} b5 {[%emt 0:13:35]} 21. a4 {[%emt 0:01:58]} Nd4 {[%emt 0:01:15]} 22. Bh5 {[%emt 0:00:09]} Bg7 {[%emt 0:06:07]} 1/2-1/2

[Event "22nd Hogeschool Zeeland 2018"]
[Site "Vlissingen"]
[Date "2018.08.09"]
[Round "7"]
[White "Schoppen, Casper"]
[Black "Vedder, Richard"]
[Result "1-0"]
[ECO "C55"]
[WhiteElo "2395"]
[BlackElo "2284"]
[Annotator "NA"]
[PlyCount "75"]
[EventDate "2018.08.04"]
[EventType "swiss"]
[EventCountry "NED"]
[SourceTitle "playchess.com"]
[Source "ChessBase"]
[SourceQuality "1"]
[TimeControl "40/5400+30:1800+30"]

1. e4 {[%emt 0:01:04]} e5 {[%emt 0:00:00]} 2. Nf3 {[%emt 0:00:04]} Nc6 {[%emt 0:00:00]} 3. Bc4 {[%emt 0:00:31]} Nf6 {[%emt 0:00:00]} 4. d3 {[%emt 0:00:05]} h6 {[%emt 0:00:07]} 5. c3 {[%emt 0:01:25]} d6 {[%emt 0:00:06]} 6. O-O {[%emt 0:01:58]} g6 {[%emt 0:01:25]} 7. Re1 {[%emt 0:05:44]} Bg7 {[%emt 0:00:21]} 8. h3 {[%emt 0:03:25]} O-O {[%emt 0:00:07]} 9. Bb3 {[%emt 0:01:46]} Be6 {[%emt 0:06:24]} 10. Bxe6 {[%emt 0:05:08]} fxe6 {[%emt 0:00:37]} 11. d4 {[%emt 0:00:18]} exd4 {[%emt 0:01:02]} 12. cxd4 {[%emt 0:00:24]} d5 {[%emt 0:00:33]} 13. e5 {[%emt 0:01:54]} Ne4 {[%emt 0:02:22]} 14. Be3 {[%emt 0:05:12]} Qe7 {[%emt 0:04:11]} 15. Nbd2 {[%emt 0:01:32]} Nxd2 {[%emt 0:01:52]} 16. Nxd2 {[%emt 0:01:01]} Qh4 {[%emt 0:08:31]} 17. Nb3 {[%emt 0:02:36]} Rf7 {[%emt 0:01:06]} 18. Nc5 {[%emt 0:03:24]} Nd8 {[%emt 0:00:23]} 19. Rc1 {[%emt 0:00:43]} b6 {[%emt 0:06:44]} 20. Nd3 {[%emt 0:00:59]} a5 {[%emt 0:03:17]} 21. Rc2 {[%emt 0:04:46]} Bf8 {[%emt 0:02:54]} 22. f4 {[%emt 0:02:39]} Rc8 {[%emt 0:03:23]} 23. Bf2 {[%emt 0:02:36]} Qe7 {[%emt 0:00:06]} 24. Qg4 {[%emt 0:00:43]} Kh7 {[%emt 0:02:25]} 25. Bh4 {[%emt 0:04:41]} Qd7 {[%emt 0:00:55]} 26. Bxd8 {[%emt 0:08:08]} h5 {[%emt 0:03:16]} 27. Qf3 {[%emt 0:04:30]} Rxd8 {[%emt 0:00:38]} 28. Rec1 {[%emt 0:00:19]} Rc8 {[%emt 0:05:49]} 29. g4 {[%emt 0:07:13]} Qa4 {[%emt 0:01:59]} 30. b4 {[%emt 0:21:31]} Bxb4 {[%emt 0:01:41]} 31. gxh5 {[%emt 0:01:07]} Rg7 {[%emt 0:08:42]} 32. Rg2 {[%emt 0:01:42]} Qe8 {[%emt 0:07:48]} 33. hxg6+ {[%emt 0:01:04]} Kg8 {[%emt 0:02:17]} 34. f5 {[%emt 0:01:21]} c6 {[%emt 0:01:42]} 35. f6 {[%emt 0:00:48]} Rxg6 {[%emt 0:00:07]} 36. Nf4 {[%emt 0:00:11]} Rxg2+ {[%emt 0:00:19]} 37. Qxg2+ {[%emt 0:00:06]} Kh7 {[%emt 0:00:15]} 38. Qg7# {[%emt 0:00:06]} 1-0

[Event "22nd Hogeschool Zeeland 2018"]
[Site "Vlissingen"]
[Date "2018.08.09"]
[Round "7"]
[White "Ravi, Teja S"]
[Black "Afek, Yochanan"]
[Result "1-0"]
[ECO "D00"]
[WhiteElo "2374"]
[BlackElo "2248"]
[Annotator "NA"]
[PlyCount "85"]
[EventDate "2018.08.04"]
[EventType "swiss"]
[EventCountry "NED"]
[SourceTitle "playchess.com"]
[Source "ChessBase"]
[SourceQuality "1"]
[TimeControl "40/5400+30:1800+30"]

1. d4 {[%emt 0:00:00]} Nf6 {[%emt 0:00:00]} 2. Nf3 {[%emt 0:00:03]} g6 {[%emt 0:00:24]} 3. Nc3 {[%emt 0:01:27]} d5 {[%emt 0:01:47]} 4. Bf4 {[%emt 0:00:13]} Bg7 {[%emt 0:02:04]} 5. e3 {[%emt 0:00:11]} O-O {[%emt 0:00:06]} 6. Be2 {[%emt 0:00:04]} c6 {[%emt 0:03:43]} 7. h4 {[%emt 0:02:10]} Bg4 {[%emt 0:01:10]} 8. Ne5 {[%emt 0:00:10]} Bxe2 {[%emt 0:00:22]} 9. Qxe2 {[%emt 0:00:05]} Qa5 {[%emt 0:09:05]} 10. h5 {[%emt 0:18:59]} Nxh5 {[%emt 0:07:38]} 11. O-O-O {[%emt 0:07:13]} Nxf4 {[%emt 0:01:19]} 12. exf4 {[%emt 0:00:27]} Qc7 {[%emt 0:07:45]} 13. f5 {[%emt 0:10:22]} Nd7 {[%emt 0:02:54]} 14. f4 {[%emt 0:01:25]} e6 {[%emt 0:11:34]} 15. g4 {[%emt 0:10:06]} exf5 {[%emt 0:02:00]} 16. gxf5 {[%emt 0:02:04]} Rfe8 {[%emt 0:00:30]} 17. Qh2 {[%emt 0:08:26]} Nf8 {[%emt 0:07:00]} 18. Rd3 {[%emt 0:07:26]} f6 {[%emt 0:04:58]} 19. Ng4 {[%emt 0:07:30]} Qd7 {[%emt 0:06:43]} 20. Ne3 {[%emt 0:09:09]} Re7 {[%emt 0:01:45]} 21. fxg6 {[%emt 0:03:16]} hxg6 {[%emt 0:01:13]} 22. f5 {[%emt 0:00:07]} Rae8 {[%emt 0:02:51]} 23. Qf2 {[%emt 0:01:32]} g5 {[%emt 0:03:20]} 24. Ng4 {[%emt 0:00:04]} Qd6 {[%emt 0:01:04]} 25. Rdh3 {[%emt 0:00:23]} Qf4+ {[%emt 0:01:33]} 26. Qxf4 {[%emt 0:00:06]} gxf4 {[%emt 0:00:02]} 27. Kd2 {[%emt 0:01:09]} b5 {[%emt 0:04:35]} 28. a3 {[%emt 0:00:25]} a5 {[%emt 0:00:08]} 29. b4 {[%emt 0:00:12]} a4 {[%emt 0:00:41]} 30. Nh6+ {[%emt 0:02:50]} Bxh6 {[%emt 0:00:18]} 31. Rxh6 {[%emt 0:00:04]} Rg7 {[%emt 0:02:20]} 32. Rxf6 {[%emt 0:01:50]} Rg2+ {[%emt 0:00:06]} 33. Kd1 {[%emt 0:00:31]} f3 {[%emt 0:00:34]} 34. Rf1 {[%emt 0:02:50]} Ree2 {[%emt 0:09:06]} 35. Rxf3 {[%emt 0:00:04]} Rd2+ {[%emt 0:00:05]} 36. Ke1 {[%emt 0:00:07]} Rxc2 {[%emt 0:00:12]} 37. Kf1 {[%emt 0:00:08]} Rgd2 {[%emt 0:03:31]} 38. Rg3+ {[%emt 0:00:24]} Kh7 {[%emt 0:00:01]} 39. Ne2 {[%emt 0:01:53]} Rxe2 {[%emt 0:01:53]} 40. Rf7+ {[%emt 0:00:05]} Kh8 {[%emt 0:00:45]} 41. Rxf8+ {[%emt 0:30:12]} Kh7 {[%emt 0:30:00]} 42. Rf7+ {[%emt 0:02:39]} Kh8 {[%emt 0:00:05]} 43. f6 {[%emt 0:01:15]} 1-0

[Event "22nd Hogeschool Zeeland 2018"]
[Site "Vlissingen"]
[Date "2018.08.09"]
[Round "7"]
[White "Van der Lende, Ilias"]
[Black "De Boer, Bas"]
[Result "1-0"]
[ECO "B22"]
[WhiteElo "2347"]
[BlackElo "2129"]
[Annotator "NA"]
[PlyCount "59"]
[EventDate "2018.08.04"]
[EventType "swiss"]
[EventCountry "NED"]
[SourceTitle "playchess.com"]
[Source "ChessBase"]
[SourceQuality "1"]
[TimeControl "40/5400+30:1800+30"]

1. e4 {[%emt 0:03:33]} c5 {[%emt 0:00:00]} 2. c3 {[%emt 0:00:04]} d5 {[%emt 0:00:00]} 3. exd5 {[%emt 0:00:05]} Qxd5 {[%emt 0:00:01]} 4. d4 {[%emt 0:00:03]} e6 {[%emt 0:01:20]} 5. Nf3 {[%emt 0:00:12]} Nf6 {[%emt 0:00:10]} 6. Be3 {[%emt 0:00:04]} cxd4 {[%emt 0:00:55]} 7. cxd4 {[%emt 0:00:04]} Be7 {[%emt 0:01:32]} 8. Nc3 {[%emt 0:00:05]} Qd8 {[%emt 0:00:07]} 9. Bd3 {[%emt 0:00:07]} O-O {[%emt 0:02:03]} 10. O-O {[%emt 0:00:46]} b6 {[%emt 0:01:03]} 11. Qe2 {[%emt 0:03:24]} Bb7 {[%emt 0:00:48]} 12. Rad1 {[%emt 0:00:20]} Nbd7 {[%emt 0:03:49]} 13. Rfe1 {[%emt 0:06:44]} Nd5 {[%emt 0:02:22]} 14. Bd2 {[%emt 0:02:51]} N7f6 {[%emt 0:00:33]} 15. Ne5 {[%emt 0:01:34]} Rc8 {[%emt 0:09:36]} 16. Ne4 {[%emt 0:01:07]} Bb4 {[%emt 0:06:32]} 17. Nxf6+ {[%emt 0:02:58]} Qxf6 {[%emt 0:05:55]} 18. Nd7 {[%emt 0:01:27]} Qxd4 {[%emt 0:00:07]} 19. Nxf8 {[%emt 0:14:33]} Bxf8 {[%emt 0:00:30]} 20. Bg5 {[%emt 0:05:53]} Qa4 {[%emt 0:05:37]} 21. Bb5 {[%emt 0:07:08]} Qxa2 {[%emt 0:06:12]} 22. Ra1 {[%emt 0:00:57]} Qb3 {[%emt 0:01:02]} 23. Rxa7 {[%emt 0:00:03]} Rc2 {[%emt 0:03:36]} 24. Qf1 {[%emt 0:03:03]} Rc7 {[%emt 0:08:33]} 25. Bd8 {[%emt 0:08:17]} Rc8 {[%emt 0:01:12]} 26. Bxb6 {[%emt 0:00:26]} Ba8 {[%emt 0:02:25]} 27. Be3 {[%emt 0:07:44]} Bb4 {[%emt 0:08:35]} 28. Rc1 {[%emt 0:07:05]} Rf8 {[%emt 0:00:36]} 29. Bd4 {[%emt 0:07:56]} Bd2 {[%emt 0:01:51]} 30. Rca1 {[%emt 0:01:23]} 1-0

[Event "22nd Hogeschool Zeeland 2018"]
[Site "Vlissingen"]
[Date "2018.08.09"]
[Round "7"]
[White "De Jong, Migchiel"]
[Black "Oosterom, Erik"]
[Result "1-0"]
[ECO "B18"]
[WhiteElo "2339"]
[BlackElo "2113"]
[Annotator "NA"]
[PlyCount "75"]
[EventDate "2018.08.04"]
[EventType "swiss"]
[EventCountry "NED"]
[SourceTitle "playchess.com"]
[Source "ChessBase"]
[SourceQuality "1"]
[TimeControl "40/5400+30:1800+30"]

1. e4 {[%emt 0:00:00]} c6 {[%emt 0:00:00]} 2. d4 {[%emt 0:00:14]} d5 {[%emt 0:00:07]} 3. Nd2 {[%emt 0:01:00]} dxe4 {[%emt 0:00:07]} 4. Nxe4 {[%emt 0:00:06]} Bf5 {[%emt 0:00:12]} 5. Ng3 {[%emt 0:00:27]} Bg6 {[%emt 0:00:08]} 6. Nh3 {[%emt 0:01:19]} e6 {[%emt 0:00:25]} 7. Nf4 {[%emt 0:00:32]} Bd6 {[%emt 0:00:38]} 8. c3 {[%emt 0:00:20]} Nf6 {[%emt 0:00:33]} 9. h4 {[%emt 0:00:35]} Qc7 {[%emt 0:01:12]} 10. Qf3 {[%emt 0:00:23]} Nbd7 {[%emt 0:01:36]} 11. h5 {[%emt 0:00:31]} Bc2 {[%emt 0:00:22]} 12. h6 {[%emt 0:00:34]} g6 {[%emt 0:00:16]} 13. Bd3 {[%emt 0:02:08]} Bxd3 {[%emt 0:00:14]} 14. Nxd3 {[%emt 0:00:08]} Qa5 {[%emt 0:16:18]} 15. Bf4 {[%emt 0:01:05]} Bxf4 {[%emt 0:01:14]} 16. Qxf4 {[%emt 0:00:23]} O-O-O {[%emt 0:11:50]} 17. O-O {[%emt 0:02:35]} g5 {[%emt 0:01:56]} 18. Qe3 {[%emt 0:01:58]} Rhg8 {[%emt 0:05:12]} 19. c4 {[%emt 0:04:01]} Ng4 {[%emt 0:04:56]} 20. Qe2 {[%emt 0:06:58]} Ndf6 {[%emt 0:02:16]} 21. Ne5 {[%emt 0:03:33]} Nxe5 {[%emt 0:05:19]} 22. dxe5 {[%emt 0:00:06]} Nd7 {[%emt 0:00:15]} 23. Rfe1 {[%emt 0:00:58]} Nc5 {[%emt 0:13:18]} 24. Ne4 {[%emt 0:03:01]} Nxe4 {[%emt 0:00:55]} 25. Qxe4 {[%emt 0:00:33]} Rg6 {[%emt 0:00:23]} 26. Qf3 {[%emt 0:06:24]} Qc7 {[%emt 0:03:29]} 27. Rad1 {[%emt 0:01:08]} Rxd1 {[%emt 0:00:20]} 28. Rxd1 {[%emt 0:00:14]} g4 {[%emt 0:06:23]} 29. Qa3 {[%emt 0:01:39]} Rg8 {[%emt 0:03:53]} 30. Rd6 {[%emt 0:00:27]} a6 {[%emt 0:05:01]} 31. Qd3 {[%emt 0:01:01]} Rg6 {[%emt 0:00:35]} 32. Qe3 {[%emt 0:01:54]} Qa5 {[%emt 0:01:16]} 33. Rd1 {[%emt 0:01:13]} g3 {[%emt 0:01:32]} 34. Qa7 {[%emt 0:01:39]} gxf2+ {[%emt 0:00:41]} 35. Kf1 {[%emt 0:00:06]} Qe1+ {[%emt 0:06:41]} 36. Rxe1 {[%emt 0:00:06]} fxe1=Q+ {[%emt 0:00:10]} 37. Kxe1 {[%emt 0:00:05]} Rxh6 {[%emt 0:00:20]} 38. Qc5 {[%emt 0:00:56]} 1-0

[Event "22nd Hogeschool Zeeland 2018"]
[Site "Vlissingen"]
[Date "2018.08.09"]
[Round "7"]
[White "Lefebvre, Herve"]
[Black "Kalisvaart, Peter"]
[Result "1/2-1/2"]
[ECO "C61"]
[WhiteElo "2304"]
[BlackElo "2090"]
[Annotator "NA"]
[PlyCount "56"]
[EventDate "2018.08.04"]
[EventType "swiss"]
[EventCountry "NED"]
[SourceTitle "playchess.com"]
[Source "ChessBase"]
[SourceQuality "1"]
[TimeControl "40/5400+30:1800+30"]

1. e4 {[%emt 0:00:00]} e5 {[%emt 0:00:00]} 2. Nf3 {[%emt 0:00:00]} Nc6 {[%emt 0:00:00]} 3. Bb5 {[%emt 0:00:00]} Nd4 {[%emt 0:00:00]} 4. Nxd4 {[%emt 0:01:11]} exd4 {[%emt 0:00:00]} 5. O-O {[%emt 0:00:06]} c6 {[%emt 0:00:03]} 6. Bc4 {[%emt 0:00:49]} Nf6 {[%emt 0:00:10]} 7. Re1 {[%emt 0:00:53]} Bc5 {[%emt 0:01:42]} 8. b4 {[%emt 0:05:58]} Bxb4 {[%emt 0:01:49]} 9. c3 {[%emt 0:01:05]} Bc5 {[%emt 0:14:13]} 10. e5 {[%emt 0:02:17]} Nd5 {[%emt 0:01:44]} 11. Qg4 {[%emt 0:09:37]} O-O {[%emt 0:02:35]} 12. cxd4 {[%emt 0:00:10]} d6 {[%emt 0:11:49]} 13. Qe4 {[%emt 0:08:19]} Bb4 {[%emt 0:06:26]} 14. Bxd5 {[%emt 0:16:10]} cxd5 {[%emt 0:00:05]} 15. Qf4 {[%emt 0:05:27]} Be6 {[%emt 0:11:44]} 16. Nc3 {[%emt 0:05:53]} dxe5 {[%emt 0:05:00]} 17. dxe5 {[%emt 0:00:28]} Bxc3 {[%emt 0:02:42]} 18. dxc3 {[%emt 0:00:06]} Rc8 {[%emt 0:00:08]} 19. Qg3 {[%emt 0:01:24]} Kh8 {[%emt 0:00:46]} 20. Rb1 {[%emt 0:04:03]} Qa5 {[%emt 0:07:28]} 21. Bg5 {[%emt 0:09:25]} Rxc3 {[%emt 0:10:21]} 22. Qh4 {[%emt 0:00:11]} Rc4 {[%emt 0:00:22]} 23. f4 {[%emt 0:00:14]} Qc7 {[%emt 0:06:15]} 24. h3 {[%emt 0:00:48]} Rc2 {[%emt 0:00:30]} 25. Rb3 {[%emt 0:04:03]} Rc3 {[%emt 0:03:11]} 26. Kh2 {[%emt 0:05:06]} d4 {[%emt 0:02:22]} 27. Rb4 {[%emt 0:02:52]} Rc4 {[%emt 0:01:27]} 28. Rb3 {[%emt 0:00:20]} Rc3 {[%emt 0:11:08]} 1/2-1/2

[Event "22nd Hogeschool Zeeland 2018"]
[Site "Vlissingen"]
[Date "2018.08.09"]
[Round "7"]
[White "Frayna, Janelle Mae"]
[Black "Van Delft, Merijn"]
[Result "1-0"]
[ECO "A11"]
[WhiteElo "2278"]
[BlackElo "2395"]
[Annotator "NA"]
[PlyCount "59"]
[EventDate "2018.08.04"]
[EventType "swiss"]
[EventCountry "NED"]
[SourceTitle "playchess.com"]
[Source "ChessBase"]
[SourceQuality "1"]
[TimeControl "40/5400+30:1800+30"]

1. Nf3 {[%emt 0:00:00]} d5 {[%emt 0:00:00]} 2. c4 {[%emt 0:00:13]} c6 {[%emt 0:00:00]} 3. e3 {[%emt 0:00:02]} Nf6 {[%emt 0:00:16]} 4. Nc3 {[%emt 0:00:13]} e6 {[%emt 0:00:30]} 5. b3 {[%emt 0:00:11]} Bd6 {[%emt 0:00:33]} 6. Qc2 {[%emt 0:02:21]} O-O {[%emt 0:00:27]} 7. Bb2 {[%emt 0:00:07]} c5 {[%emt 0:01:06]} 8. cxd5 {[%emt 0:09:32]} exd5 {[%emt 0:02:36]} 9. d4 {[%emt 0:03:03]} Nc6 {[%emt 0:06:55]} 10. dxc5 {[%emt 0:04:05]} Bxc5 {[%emt 0:02:22]} 11. Be2 {[%emt 0:03:14]} Bg4 {[%emt 0:04:49]} 12. O-O {[%emt 0:00:37]} Qe7 {[%emt 0:07:40]} 13. Rac1 {[%emt 0:11:16]} Rad8 {[%emt 0:03:26]} 14. Na4 {[%emt 0:14:23]} Bd6 {[%emt 0:02:55]} 15. Ng5 {[%emt 0:09:02]} d4 {[%emt 0:17:00]} 16. Bxg4 {[%emt 0:04:18]} Bxh2+ {[%emt 0:21:38]} 17. Kh1 {[%emt 0:00:19]} h6 {[%emt 0:09:26]} 18. Bf3 {[%emt 0:02:38]} Nb4 {[%emt 0:02:26]} 19. Qf5 {[%emt 0:04:03]} g6 {[%emt 0:03:23]} 20. Qh3 {[%emt 0:00:55]} hxg5 {[%emt 0:00:24]} 21. Qxh2 {[%emt 0:04:09]} Kg7 {[%emt 0:05:16]} 22. Qc7 {[%emt 0:02:16]} Rh8+ {[%emt 0:04:55]} 23. Kg1 {[%emt 0:00:00]} Qe6 {[%emt 0:01:14]} 24. Bxd4 {[%emt 0:02:52]} Rxd4 {[%emt 0:00:13]} 25. exd4 {[%emt 0:01:01]} g4 {[%emt 0:01:53]} 26. Bxb7 {[%emt 0:04:43]} Nd3 {[%emt 0:00:58]} 27. Nc5 {[%emt 0:17:57]} Qf5 {[%emt 0:00:02]} 28. Rce1 {[%emt 0:00:00]} Nxe1 {[%emt 0:00:55]} 29. Rxe1 {[%emt 0:00:00]} g5 {[%emt 0:00:36]} 30. g3 {[%emt 0:00:00]} 1-0